Cogmind - Beta 16 @@@ ROGUE MODE // 2025.11.25 @ 20:50:21 Player: JuustuToug Result: Destroyed by G-47 Trooper with Particle Gun Performance ------------- Evolutions (0) 0 Regions Visited (1) 200 Robots Destroyed (16) 80 Value Destroyed (387) 387 Prototype IDs (0) 0 Alien Tech Used (0) 0 Bonus (0) 0 TOTAL SCORE: 667 Bonus ------- None Cogmind --------- Core Integrity 0/250 Matter 263/300 Energy 125/125 System Corruption 0% Temperature Cool (18) Movement Treading (320) Ox2 Location -10/Materials Parts ------- > --- POWER (1) -------- Light Ion Engine > --- PROPULSION (2) --- Light Treads Aluminum Leg > --- UTILITY (2) ------ High-capacity Storage Unit > --- WEAPON (2) ------- Light Assault Rifle Light Assault Rifle > --- INVENTORY (20) --- Ion Engine Aluminum Leg Wheel Medium Storage Unit Grenade Launcher Grenade Launcher Hammer Peak State ------------ > --- POWER ------------ Light Ion Engine > --- PROPULSION ------- Light Treads Light Treads > --- UTILITY ---------- Small Storage Unit High-capacity Storage Unit > --- WEAPON ----------- Light Assault Rifle Light Assault Rifle > --- INVENTORY -------- Aluminum Leg Aluminum Leg Wheel Grenade Launcher Grenade Launcher Hammer [Rating: 7] Favorites ----------- Power Ion Engine Engine Ion Engine Propulsion Light Treads Treads Light Treads Leg Aluminum Leg Utility Small Storage Unit Storage Small Storage Unit Weapon Light Assault Rifle Energy Gun EM Pulse Gun Ballistic Gun Light Assault Rifle Launcher Grenade Launcher Build | -11 -10 ------- Run | Yrd Mat Slots Evolved . | . . Power . | . . Propulsion . | . . Utility . | . . Weapon . | . . Parts Attached 13 | 6 7 Power 2 | 1 1 Engine 2 | 1 1 Core . | . . Reactor . | . . Propulsion 4 | 2 2 Treads 3 | 2 1 Leg 1 | . 1 Wheel . | . . Hover . | . . Flight . | . . Utility 2 | 1 1 Device . | . . Storage 2 | 1 1 Processor . | . . Hackware . | . . Protection . | . . Artifact . | . . Weapon 5 | 2 3 Energy Gun 2 | 1 1 Energy Cannon . | . . Ballistic Gun 2 | 1 1 Ballistic Cannon . | . . Launcher 1 | . 1 Special Weapon . | . . Impact Weapon . | . . Slashing Weapon . | . . Piercing Weapon . | . . Special Melee Weapon . | . . Unidentified Prototypes . | . . Parts Lost 5 | . 5 Power 1 | . 1 Propulsion 2 | . 2 Utility . | . . Weapon 2 | . 2 Highest Loss Streak 2 | . 2 To Critical Strikes . | . . Average Backups 6 | 3 7 Power . | . . Propulsion 2 | 1 2 Utility . | . . Weapon 2 | . 2 Tool/Special . | . . Unused Backups 6 | . 6 Power 1 | . 1 Propulsion 2 | . 2 Utility 1 | . 1 Weapon 2 | . 2 Tool/Special . | . . Average Slot Usage (%) 79 | . 79 Engine 12 | . 12 Treads 26 | . 26 Storage 14 | . 14 Energy Gun 6 | . 6 Ballistic Gun 17 | . 17 Peak Build Rating 7 | 6 7 Average Rating 5 | 4 5 On Entrance 3 | . 6 Avg Prop Armor Cover (%) . | . . Naked Turns . | . . Heaviest Build 45 | 13 45 Greatest Support 40 | 40 40 Greatest Overweight (x) 3 | 3 1 Average Overweight (x) . | . . Largest Inventory Capacity 20 | 8 20 Average Capacity 11 | 7 12 Most Carried 8 | 5 8 Average Carried 6 | 3 7 Final Capacity 20 | 8 20 Final Carried 7 | 5 7 Class Distribution -------------------- 100% | Mutant Dominant Class ---------------- Mutant | -10/Materials Resources | -11 -10 ----------- Run | Yrd Mat Matter Collected 375 | 195 180 Remotely . | . . Salvage Created 382 | . 382 Parts 30 | . 30 Haulers Intercepted . | . . Recyclers Shooed . | . . Parts Field Recycled . | . . Retrieved Matter . | . . Parts Self-Destructed . | . . Prevented . | . . Parts Restored . | . . Kills | -11 -10 ------- Run | Yrd Mat Combat Hostiles Destroyed 14 | . 14 Guns 6 | . 6 AOE 8 | . 8 Classes Destroyed 4 | . 4 Operator 1 | . 1 Watcher 1 | . 1 Swarmer 6 | . 6 Grunt 8 | . 8 Best Kill Streak 6 | . 6 Combat Bots Only 6 | . 6 Max Kills in Single Turn 2 | . 2 Gunslinging . | . . Exploded 2 | . 2 Melee . | . . Uniques/NPCs Destroyed . | . . Combat | -11 -10 -------- Run | Yrd Mat Hostile Shots Fired 55 | . 55 Missed 10 | . 10 Hits 45 | . 45 Projectile 45 | . 45 Damage Taken 1040 | . 1040 Core 258 | . 258 Absorbed by Shields . | . . Core Remaining (%) 100 | 100 . Volleys Fired 38 | . 38 Largest 2 | . 2 Hottest 80 | . 80 Shots Fired 72 | . 72 Gun 68 | . 68 Cannon . | . . Launcher 4 | . 4 Special . | . . Kinetic 50 | . 50 Thermal . | . . Explosive 4 | . 4 Electromagnetic 18 | . 18 Robot Hit Streak 5 | . 5 Robot Miss Streak 3 | . 3 Penetration Max . | . . Secondary Targets 1 | . 1 Max Gunslinging Chain 1 | . 1 Shots Hit Robots 39 | . 39 Core Hits 28 | . 28 Critical Kills . | . . Critical Parts Destroyed 1 | . 1 Critical Strikes 1 | . 1 Destroy 1 | . 1 Melee Attacks . | . . Impact . | . . Slashing . | . . Piercing . | . . Sneak Attacks . | . . Combat Hostiles . | . . Follow-up Attacks . | . . Damage Inflicted 844 | . 844 Guns 398 | . 398 Cannons . | . . Explosions 443 | . 443 Melee . | . . Ramming 3 | . 3 Kinetic 238 | . 238 Thermal 66 | . 66 Explosive 377 | . 377 Electromagnetic 160 | . 160 Impact . | . . Slashing . | . . Piercing . | . . Highest Corruption . | . . Average Corruption . | . . Corruption Purged . | . . Corruption Blocked . | . . Overload Shots . | . . Overflow Damage 90 | . 90 Projectiles . | . . Explosions 90 | . 90 Melee . | . . Knockbacks . | . . Impact . | . . Kinetic . | . . Secondary . | . . Self-Inflicted Damage 254 | . 254 Shots 5 | . 5 Rammed 1 | . 1 Targets Rammed 1 | . 1 Kicked . | . . Crushed . | . . Highest Temperature 76 | . 76 Average Temperature 23 | . 23 Received Heat Transfer 234 | . 234 Siege Activations . | . . Martial Activations . | . . Shielding Activations . | . . Robots Disrupted . | . . Combat Hostiles . | . . Robots Corrupted . | . . Combat Hostiles . | . . Parts Fried . | . . Impact Corruptions . | . . Robots Melted . | . . Combat Hostiles . | . . Parts Melted . | . . Heat Transferred 150 | . 150 Parts Sabotaged . | . . Parts Stolen . | . . Parts Stripped . | . . Power Chain Reactions 2 | . 2 Alert | -11 -10 ------- Run | Yrd Mat Maximum Alert Level . | . . Low Security (%) 100 | 100 100 Level 1 . | . . Level 2 . | . . Level 3 . | . . Level 4 . | . . Level 5 . | . . High Security . | . . Max Security . | . . Peak Influence 158 | . 158 Initial . | . . Average 55 | . 61 Influence Increases 464 | . 464 Destroy 0b10 Robot/C 280 | . 280 Destroy 0b10 Robot/NC 10 | . 10 Destroy Leader 52 | . 52 Successful Hack 22 | . 22 Disable Machine 15 | . 15 Destroy Structure 55 | . 55 Lose Combat Pursuer 30 | . 30 Influence Decreases 366 | . 366 Time Decay 323 | . 323 Lost Part 43 | . 43 Squads Dispatched 2 | . 2 Investigation . | . . Extermination . | . . Reinforcement 2 | . 2 Assault . | . . Garrison . | . . Intercept . | . . Searches Triggered . | . . Construction Impeded . | . . Haulers Reinforced . | . . Active Scanning Responses . | . . Cargo Convoy Interrupts . | . . Stealth | -11 -10 --------- Run | Yrd Mat Distress Signals 1 | . 1 Communications Jammed . | . . Distress Signals . | . . Times Spotted 18 | . 18 Peak Tracking Total 3 | . 3 Tactical Retreats 2 | . 2 Traps | -11 -10 ------- Run | Yrd Mat Traps Triggered 2 | . 2 Indirectly . | . . Trap Hack Attempts . | . . Triggered . | . . Disarmed . | . . Reprogrammed . | . . Reused . | . . Traps Extracted . | . . Installed . | . . Triggered . | . . Machines | -11 -10 ---------- Run | Yrd Mat Machines Disabled 1 | . 1 Max in Single Turn 1 | . 1 Machines Repaired . | . . Machines Dismantled . | . . Machines Sabotaged . | . . Overloaded Fab Kills . | . . Hacking | -11 -10 --------- Run | Yrd Mat Machines Accessed 5 | . 5 Terminals 5 | . 5 Fabricators . | . . Repair Stations . | . . Recycling Units . | . . Scanalyzers . | . . Garrison Access . | . . Total Hacks 18 | . 18 Successful 5 | . 5 Failed 13 | . 13 Catastrophic . | . . Database Lockouts . | . . Manual 18 | . 18 Terminals 18 | . 18 Fabricators . | . . Repair Stations . | . . Recycling Units . | . . Scanalyzers . | . . Garrison Access . | . . Terminal Hacks . | . . Fabricator Hacks . | . . Repair Station Hacks . | . . Recycling Unit Hacks . | . . Scanalyzer . | . . Garrison Access Hacks . | . . Unauthorized Hacks 5 | . 5 Terminals 5 | . 5 Botnet 1 | . 1 Skim 4 | . 4 Fabricators . | . . Repair Stations . | . . Recycling Units . | . . Scanalyzers . | . . Garrison Access . | . . Data Cores Recovered . | . . Used . | . . Hacking Detections 5 | . 5 Full Trace Events . | . . Feedback Events . | . . Feedback Blocked . | . . Robot Schematics Acquired . | . . Robots Built . | . . Authchips . | . . Time . | . . Total Robot Build Rating . | . . Part Schematics Acquired . | . . Parts Built . | . . Authchips . | . . Time . | . . Total Part Build Rating . | . . Part Studies Acquired . | . . Parts Repaired . | . . Time . | . . Parts Recycled . | . . Recycled Matter . | . . Retrieved Matter . | . . Retrieved Components . | . . Parts Scanalyzed . | . . Part Schematics Acquired . | . . Parts Damaged . | . . Bothacking | -11 -10 ------------ Run | Yrd Mat Used RIF Installer . | . . Robots Hacked . | . . Non-combat . | . . Combat . | . . Robot Hacks Applied . | . . Relay Couplers Released . | . . Fabnet Peak Effective % . | . . Robots Rewired . | . . Allies Hacked . | . . Hacks Repelled . | . . Allies | -11 -10 -------- Run | Yrd Mat Total Allies . | . . Largest Group . | . . Highest-Rated Group . | . . Highest-Rated Ally . | . . Total Orders . | . . Ally Attacks . | . . Total Damage . | . . Kills . | . . Allies Corrupted . | . . Allies Melted . | . . Intel | -11 -10 ------- Run | Yrd Mat Active Infowar (turns) . | . . Robot Analysis Total . | . . Derelict Logs Recovered . | . . Drone Launches . | . . Drone Recoveries . | . . Exploration | -11 -10 ------------- Run | Yrd Mat Turns Passed 1038 | 93 945 Spaces Moved 478 | 50 428 Core 7 | 7 . Treads 471 | 43 428 Legs . | . . Wheels . | . . Hover . | . . Flight . | . . Fastest Speed 50 | 50 160 Average Speed 177 | 160 179 Slowest Speed 240 | 200 240 Overloaded Moves . | . . Propulsion Burnouts . | . . Robots Hopped . | . . Potential Cave-ins . | . . Cave-ins Triggered . | . . Exploration Rate (%) 32 | 4 60 Regions Visited 1 Branch Regions . Pre-discovered Areas . | . . Known Exits Taken . | . . Unknown Exits Taken 1 | 1 . Scrap Searched . | . . Spaces Dug 18 | . 18 Terrain Destroyed 61 | . 61 Melee . | . . Projectile . | . . AOE 61 | . 61 Terrain Rammed . | . . Walls Destroyed . | . . Machines Disabled . | . . Actions | -11 -10 --------- Run | Yrd Mat Total 602 | 60 542 Wait 60 | . 60 Move 477 | 49 428 Hop . | . . Pick Up 10 | 5 5 Fast Attach 9 | 6 3 Attach 4 | . 4 Detach 1 | . 1 Swap 1 | . 1 Drop 1 | . 1 Fire 38 | . 38 Melee . | . . Ram . | . . Kick . | . . Crush 1 | . 1 Escape Stasis . | . . Rewire . | . . Trap . | . . Miscellaneous . | . . Route ------- -11/Scrapyard -10/Materials (discovered 5 exits: [*Mat x3] / [*Min x2]) History --------- Turn | Location | Event 16 | -11/Scrapyard | Discovered new exit (range 15) 94 | -11/Scrapyard | Entered Materials 240 | -10/Materials | Discovered new exit (range 5) 304 | -10/Materials | Build established: Mutant 603 | -10/Materials | Discovered new exit (range 16) 688 | -10/Materials | Discovered new exit (range 5) 689 | -10/Materials | Core integrity fell below 50% 875 | -10/Materials | Discovered new exit (range 9) 962 | -10/Materials | Discovered new exit (range 16) 999 | -10/Materials | Core integrity fell below 20% 1039 | -10/Materials | Destroyed by G-47 Trooper with Particle Gun Last Messages --------------- 00872_ K-01 Serf collects debris. 00875_ EXIT=FOUND 00876_ K-01 Serf cleans the Recycling Unit. 00882_ K-01 Serf collects debris. 00887_ K-01 Serf cleans the Recycling Unit. 00928_ Acquired Ion Engine. 00946_ K-01 Serf cleans the Machine. 00962_ EXIT=FOUND 01010_ Lgt. Treads destroyed. 01011_ G-34 Mercenary suffers critical hit (Destroy). 01011_ Destroyed Aluminum Leg. 01022_ G-34 Mercenary destroyed. 01022_ Switching to secondary target: G-47 Trooper. 01027_ Slammed into M-13 Machinist. 01028_ Acquired 46 matter. 01028_ K-01 Serf collects debris. 01033_ R-06 Scavenger collects Heat Sink. 01036_ K-01 Serf collects debris. Map ----- +----------------------------------------------------+ | ???????????????????????????????????#^^ % ##?? | | ???????????????????????????????????# % #?? | | ?????????????????????????# ???????## # # #### | | ?????????????????????????# ??????## | | ?????????????????????????# ??????## | | ?????????????????????????# ?????## %## #### | | ?????????????????????????# ?????## ########??? | | ?????????????????????????# ????## ##????????? | | ??????????????????????#??# ###### ########??? | | ?????????????????????# # ^ #??? | | ?????????????????????# #??? | | ????????????????????????## #??? | | ??????????????????########+## #########+##### | | ??????????????????# # #?# | | ??????????????????# "#! !#?# | | | ??????????????????+ T##!!! ##?# | | ??????????????????? "#######??# | | ??????????????????# """ ######???# | | ??????????????????? """ ## #???# = | | ?????????????????????"" ## #???###########+# | | ??????????????????????? ?# #???????????# | | ????????????????????????#r#??# #???????????# | | ????????????????????????# #??# #########???# | | ????????????????????????# #??# #"""""""#???# | | ????????????????????????# #??# #" |"| "#???# "" | | ??????????????# #######@#####+##" "##### "Y | | ??????????# g=r | | ??????????# < k < | | ??????????# ! | | ??????????############### ####+## ##### | | ????????????????????????# #?# ################# | | ????????????????????????# #?# # #??## | | ????????????????????????# #?# # "" #### | | ????????????????????????# #?# # """ T"%+= | | ????????????????????????# #?# # """ ""!#### | | ????????????????????????# #?# # """ ] #??## | | ????????????????????????# #?# # #???? | | ???????????????????????? #?##### [ #???? | | ???????????????????????? #??#########+######???? | | ???????????????????????" = ######### | | ???????????????????????? ??######## " | | ???????????????????????? ?????????## # | | ?????????????????????????????????????# + | | ?????????????????????????????????????# # | | ?????????????????????????????????????# ######### | | ?????????????????????????????????????# # ? | | ?????????????????????????????????????# # """ ? | | ?????????????????????????????????????# # """""? | | ?????????????????????????????????????# # """""? | | ?????????????????????????????????????# + """""? | +----------------------------------------------------+ Best States ------------- Heat Dissipation 25 Energy Generation 10 Energy Capacity 250 Matter Stores 300 Matter Capacity 300 Sight Range 16 Terrain Scan Density 10 Evasion (%) 40 Recoil Reduction 2 Item Schematics ----------------- None Robot Schematics ------------------ None Fabricated ------------ Nothing Repaired ---------- Nothing Studied --------- None Alien Tech Used ----------------- None Achievements -------------- None Challenges ------------ None Game ------ Seed SensorSuperchargedStreamer Manual? 0 Play Time 00:06:35 Cumulative 197.0 hours Start 2025.11.25 @ 20:45:13 End 2025.11.25 @ 20:50:21 Sessions 1 Manual Loads 0 Difficulty Rogue Special Mode None Game No. 136 Rogue 136 Adventurer 0 Explorer 0 Win Type - Total 7 Types 5/0/1/1/0/0/0/0/0/0 Lore% 83 Gallery% 75 Achievement% 57 Wizard Run 0 Options --------- Layout 1 ASCII 0 Keyboard 0 Movement Mouse Keybinds 0 Fullscreen 2 Font 24/Smallcaps Map View 50x35 Zoom Use 0% Tactical HUD 1 Map Filters NONE Filters NONE Steam 1 RUN: fde997aa-8987-4bab-bb3e-4e522361776e